[Event "Titled Tuesday Blitz October 18 Late 2022"]
[White "Jaferian, Koosha"]
[Black "Timmermans, Mark"]
[WhiteFideId "12507440"]
[BlackFideId "1026399"]
[WhiteElo "2127"]
[BlackElo "2460"]
[Result "0-1"]
[Round "09"]
[TimeControl "180+1"]
[Date "2022.10.18"]
[WhiteClock "0:00:30"]
[BlackClock "0:01:29"]

1. e4 {[%clk 0:03:00]}  e5 {[%clk 0:02:59]} 2. Nf3 {[%clk 0:03:00]}  Nc6 {[%clk 0:02:59]} 3. d4 {[%clk 0:03:01]}  exd4 {[%clk 0:02:59]} 4. Nxd4 {[%clk 0:03:02]}  Nf6 {[%clk 0:02:59]} 5. Nc3 {[%clk 0:03:01]}  Bb4 {[%clk 0:02:58]} 6. Nxc6 {[%clk 0:03:02]}  bxc6 {[%clk 0:02:59]} 7. Bd3 {[%clk 0:03:02]}  d5 {[%clk 0:02:59]} 8. exd5 {[%clk 0:03:02]}  O-O {[%clk 0:02:59]} 9. O-O {[%clk 0:03:02]}  cxd5 {[%clk 0:02:59]} 10. h3 {[%clk 0:03:01]}  c6 {[%clk 0:02:58]} 11. Qf3 {[%clk 0:02:59]}  Be7 {[%clk 0:02:56]} 12. Bf4 {[%clk 0:02:59]}  Re8 {[%clk 0:02:54]} 13. Rfe1 {[%clk 0:02:59]}  Be6 {[%clk 0:02:52]} 14. Rad1 {[%clk 0:02:54]}  Nd7 {[%clk 0:02:41]} 15. Ne2 {[%clk 0:02:43]}  c5 {[%clk 0:02:40]} 16. b3 {[%clk 0:02:43]}  Qb6 {[%clk 0:02:27]} 17. Ng3 {[%clk 0:02:40]}  Rac8 {[%clk 0:02:21]} 18. Bf5 {[%clk 0:02:29]}  Bf8 {[%clk 0:02:20]} 19. Re2 {[%clk 0:01:53]}  Bxf5 {[%clk 0:02:09]} 20. Rxe8 {[%clk 0:01:41]}  Rxe8 {[%clk 0:02:10]} 21. Nxf5 {[%clk 0:01:42]}  Nf6 {[%clk 0:02:11]} 22. Bg5 {[%clk 0:01:34]}  Ne4 {[%clk 0:02:09]} 23. Bf4 {[%clk 0:01:15]}  d4 {[%clk 0:02:08]} 24. Re1 {[%clk 0:01:10]}  Ng5 {[%clk 0:02:03]} 25. Rxe8 {[%clk 0:00:48]}  Nxf3+ {[%clk 0:02:00]} 26. gxf3 {[%clk 0:00:49]}  Qg6+ {[%clk 0:01:47]} 27. Ng3 {[%clk 0:00:34]}  f5 {[%clk 0:01:42]} 28. Re5 {[%clk 0:00:30]}  Bd6 {[%clk 0:01:37]} 29. Rxf5 {[%clk 0:00:28]}  Bxf4 {[%clk 0:01:36]} 30. Rxf4 {[%clk 0:00:29]}  Qxc2 {[%clk 0:01:34]} 31. Nf5 {[%clk 0:00:30]}  Qc1+ {[%clk 0:01:29]} 0-1


[Site "https://www.chess.com"]

[Event "Titled Tuesday Blitz October 18 Late 2022"]
[White "Kanter, Eduard"]
[Black "Kaganskiy, Gleb"]
[WhiteFideId "4103963"]
[BlackFideId "4132025"]
[WhiteElo "2267"]
[BlackElo "2165"]
[Result "1-0"]
[Round "09"]
[TimeControl "180+1"]
[Date "2022.10.19"]
[WhiteClock "0:00:50"]
[BlackClock "0:00:27"]

1. d4 {[%clk 0:03:00]}  d5 {[%clk 0:02:59]} 2. c4 {[%clk 0:02:58]}  e6 {[%clk 0:02:59]} 3. Nf3 {[%clk 0:02:58]}  c6 {[%clk 0:02:59]} 4. g3 {[%clk 0:02:58]}  Nf6 {[%clk 0:02:58]} 5. Bg2 {[%clk 0:02:58]}  Be7 {[%clk 0:02:58]} 6. O-O {[%clk 0:02:57]}  O-O {[%clk 0:02:59]} 7. Nc3 {[%clk 0:02:57]}  b6 {[%clk 0:02:57]} 8. Nd2 {[%clk 0:02:56]}  Bb7 {[%clk 0:02:51]} 9. e4 {[%clk 0:02:53]}  c5 {[%clk 0:02:51]} 10. cxd5 {[%clk 0:02:37]}  exd5 {[%clk 0:02:47]} 11. e5 {[%clk 0:02:32]}  Ne4 {[%clk 0:02:47]} 12. Ndxe4 {[%clk 0:02:26]}  dxe4 {[%clk 0:02:47]} 13. d5 {[%clk 0:02:22]}  f5 {[%clk 0:02:37]} 14. exf6 {[%clk 0:02:14]}  Bxf6 {[%clk 0:02:33]} 15. Nxe4 {[%clk 0:02:06]}  Bd4 {[%clk 0:02:24]} 16. Ng5 {[%clk 0:01:44]}  Bxd5 {[%clk 0:02:04]} 17. Qh5 {[%clk 0:01:35]}  h6 {[%clk 0:01:58]} 18. Ne6 {[%clk 0:01:35]}  Bxe6 {[%clk 0:01:51]} 19. Bxa8 {[%clk 0:01:34]}  Nd7 {[%clk 0:01:42]} 20. Bg2 {[%clk 0:01:34]}  Nf6 {[%clk 0:01:39]} 21. Qe2 {[%clk 0:01:33]}  Bg4 {[%clk 0:01:20]} 22. Qc4+ {[%clk 0:01:29]}  Kh8 {[%clk 0:01:20]} 23. Be3 {[%clk 0:01:28]}  Bxe3 {[%clk 0:01:16]} 24. fxe3 {[%clk 0:01:27]}  Qd2 {[%clk 0:01:13]} 25. Qc3 {[%clk 0:01:22]}  Qxc3 {[%clk 0:01:06]} 26. bxc3 {[%clk 0:01:21]}  Re8 {[%clk 0:01:05]} 27. h3 {[%clk 0:01:20]}  Be2 {[%clk 0:00:56]} 28. Rfe1 {[%clk 0:01:14]}  Bc4 {[%clk 0:00:54]} 29. Rad1 {[%clk 0:01:03]}  Kg8 {[%clk 0:00:36]} 30. e4 {[%clk 0:00:59]}  Re5 {[%clk 0:00:34]} 31. Rd8+ {[%clk 0:00:51]}  Kf7 {[%clk 0:00:33]} 32. Ra8 {[%clk 0:00:51]}  Bxa2 {[%clk 0:00:27]} 33. Rxa7+ {[%clk 0:00:50]} 1-0


[Site "https://www.chess.com"]

[Event "Titled Tuesday Blitz October 18 Late 2022"]
[White "Kovacevic, Radmila"]
[Black "Hajiyev, Kanan"]
[WhiteFideId "933171"]
[BlackFideId "13404148"]
[WhiteElo "2208"]
[BlackElo "2118"]
[Result "1-0"]
[Round "09"]
[TimeControl "180+1"]
[Date "2022.10.19"]
[WhiteClock "0:00:46"]
[BlackClock "0:00:09"]

1. e4 {[%clk 0:02:55]}  c6 {[%clk 0:01:10]} 2. d4 {[%clk 0:02:53]}  d5 {[%clk 0:01:11]} 3. e5 {[%clk 0:02:53]}  a6 {[%clk 0:01:11]} 4. Be3 {[%clk 0:02:53]}  Bf5 {[%clk 0:01:10]} 5. Nd2 {[%clk 0:02:52]}  e6 {[%clk 0:01:09]} 6. g4 {[%clk 0:02:52]}  Bg6 {[%clk 0:01:09]} 7. Bg2 {[%clk 0:02:51]}  h5 {[%clk 0:01:09]} 8. f3 {[%clk 0:02:47]}  hxg4 {[%clk 0:01:05]} 9. fxg4 {[%clk 0:02:48]}  Nh6 {[%clk 0:01:01]} 10. Bf3 {[%clk 0:02:32]}  c5 {[%clk 0:00:59]} 11. c3 {[%clk 0:02:31]}  cxd4 {[%clk 0:00:59]} 12. cxd4 {[%clk 0:02:13]}  Nc6 {[%clk 0:00:58]} 13. a3 {[%clk 0:02:03]}  Qb6 {[%clk 0:00:57]} 14. Qb3 {[%clk 0:01:59]}  Qa7 {[%clk 0:00:48]} 15. Ne2 {[%clk 0:01:52]}  Be7 {[%clk 0:00:46]} 16. h4 {[%clk 0:01:45]}  Ng8 {[%clk 0:00:30]} 17. h5 {[%clk 0:01:42]}  Bh7 {[%clk 0:00:29]} 18. Rc1 {[%clk 0:01:36]}  Rc8 {[%clk 0:00:29]} 19. O-O {[%clk 0:01:33]}  f6 {[%clk 0:00:28]} 20. Kg2 {[%clk 0:01:28]}  Kd7 {[%clk 0:00:23]} 21. Rc3 {[%clk 0:01:17]}  Qb8 {[%clk 0:00:23]} 22. Bxd5 {[%clk 0:00:59]}  exd5 {[%clk 0:00:19]} 23. Qxd5+ {[%clk 0:01:00]}  Ke8 {[%clk 0:00:18]} 24. Bf4 {[%clk 0:00:57]}  fxe5 {[%clk 0:00:17]} 25. dxe5 {[%clk 0:00:56]}  Rd8 {[%clk 0:00:15]} 26. Qf3 {[%clk 0:00:53]}  Qa7 {[%clk 0:00:09]} 27. Rxc6 {[%clk 0:00:50]}  bxc6 {[%clk 0:00:09]} 28. Be3 {[%clk 0:00:46]}  Qd7 {[%clk 0:00:09]} 29. Qf7# {[%clk 0:00:46]} 1-0


[Site "https://www.chess.com"]

[Event "Titled Tuesday Blitz October 18 Late 2022"]
[White "Lima, Endson Dos Santos"]
[Black "Bongo Akanga Ndjila, Barthelemy"]
[WhiteFideId "2133199"]
[BlackFideId "10609431"]
[WhiteElo "1953"]
[BlackElo "1768"]
[Result "1-0"]
[Round "09"]
[TimeControl "180+1"]
[Date "2022.10.19"]
[WhiteClock "0:00:18"]
[BlackClock "0:00:01"]

1. e4 {[%clk 0:02:59]}  c6 {[%clk 0:00:49]} 2. d4 {[%clk 0:02:42]}  d5 {[%clk 0:00:50]} 3. exd5 {[%clk 0:02:42]}  cxd5 {[%clk 0:00:50]} 4. c4 {[%clk 0:02:43]}  Nf6 {[%clk 0:00:50]} 5. cxd5 {[%clk 0:02:44]}  Nxd5 {[%clk 0:00:49]} 6. Nc3 {[%clk 0:02:45]}  Nb6 {[%clk 0:00:49]} 7. Nf3 {[%clk 0:02:43]}  Bg4 {[%clk 0:00:48]} 8. Be2 {[%clk 0:02:43]}  e6 {[%clk 0:00:48]} 9. O-O {[%clk 0:02:43]}  Be7 {[%clk 0:00:48]} 10. Bf4 {[%clk 0:02:42]}  O-O {[%clk 0:00:46]} 11. h3 {[%clk 0:02:38]}  Bh5 {[%clk 0:00:44]} 12. a4 {[%clk 0:02:38]}  Nd5 {[%clk 0:00:40]} 13. Bg3 {[%clk 0:02:33]}  Nc6 {[%clk 0:00:39]} 14. Ne5 {[%clk 0:02:31]}  Bxe2 {[%clk 0:00:35]} 15. Nxe2 {[%clk 0:02:29]}  Ncb4 {[%clk 0:00:34]} 16. Nc3 {[%clk 0:02:25]}  a6 {[%clk 0:00:33]} 17. Qg4 {[%clk 0:02:23]}  Rc8 {[%clk 0:00:27]} 18. Rad1 {[%clk 0:02:08]}  Nxc3 {[%clk 0:00:26]} 19. bxc3 {[%clk 0:02:08]}  Rxc3 {[%clk 0:00:26]} 20. Rfe1 {[%clk 0:02:07]}  Nd5 {[%clk 0:00:25]} 21. f4 {[%clk 0:01:52]}  Bf6 {[%clk 0:00:23]} 22. f5 {[%clk 0:01:51]}  exf5 {[%clk 0:00:19]} 23. Qxf5 {[%clk 0:01:46]}  Rxg3 {[%clk 0:00:19]} 24. Ng4 {[%clk 0:01:43]}  Rxg4 {[%clk 0:00:16]} 25. hxg4 {[%clk 0:01:43]}  Qd6 {[%clk 0:00:14]} 26. g5 {[%clk 0:01:41]}  Bd8 {[%clk 0:00:12]} 27. Rf1 {[%clk 0:01:37]}  Bb6 {[%clk 0:00:09]} 28. Rde1 {[%clk 0:01:30]}  Bc7 {[%clk 0:00:09]} 29. Re5 {[%clk 0:01:27]}  Nc3 {[%clk 0:00:05]} 30. Rf3 {[%clk 0:01:17]}  Nxa4 {[%clk 0:00:03]} 31. Rd5 {[%clk 0:01:06]}  Qc6 {[%clk 0:00:03]} 32. Rd7 {[%clk 0:00:58]}  Qc1+ {[%clk 0:00:02]} 33. Rf1 {[%clk 0:00:58]}  Qc4 {[%clk 0:00:01]} 34. Qe4 {[%clk 0:00:33]}  Bb6 {[%clk 0:00:01]} 35. Rdxf7 {[%clk 0:00:18]} 1-0


[Site "https://www.chess.com"]

[Event "Titled Tuesday Blitz October 18 Late 2022"]
[White "Machidon, Cristi"]
[Black "Pham, Khoi"]
[WhiteFideId "13904590"]
[BlackFideId "1054988"]
[WhiteElo "2312"]
[BlackElo "2464"]
[Result "1-0"]
[Round "09"]
[TimeControl "180+1"]
[Date "2022.10.19"]
[WhiteClock "0:02:41"]
[BlackClock "0:02:44"]

1. f4 {[%clk 0:03:00]}  f5 {[%clk 0:02:52]} 2. Nf3 {[%clk 0:03:00]}  Nf6 {[%clk 0:02:53]} 3. g3 {[%clk 0:03:00]}  g6 {[%clk 0:02:54]} 4. Bg2 {[%clk 0:03:00]}  Bg7 {[%clk 0:02:55]} 5. d3 {[%clk 0:03:01]}  O-O {[%clk 0:02:55]} 6. O-O {[%clk 0:03:02]}  d6 {[%clk 0:02:55]} 7. Nbd2 {[%clk 0:03:02]}  Nc6 {[%clk 0:02:55]} 8. e4 {[%clk 0:03:02]}  e5 {[%clk 0:02:54]} 9. fxe5 {[%clk 0:02:59]}  dxe5 {[%clk 0:02:55]} 10. exf5 {[%clk 0:02:59]}  Bxf5 {[%clk 0:02:55]} 11. Nc4 {[%clk 0:02:55]}  Ng4 {[%clk 0:02:48]} 12. h3 {[%clk 0:02:41]}  Qd4+ {[%clk 0:02:44]} 13. Nxd4 {[%clk 0:02:41]} 1-0


[Site "https://www.chess.com"]

[Event "Titled Tuesday Blitz October 18 Late 2022"]
[White "Manukian, Artak"]
[Black "Zverev, Lev"]
[WhiteFideId "13301373"]
[BlackFideId "24250775"]
[WhiteElo "2487"]
[BlackElo "2207"]
[Result "1-0"]
[Round "09"]
[TimeControl "180+1"]
[Date "2022.10.18"]
[WhiteClock "0:00:14"]
[BlackClock "0:00:36"]

1. e4 {[%clk 0:03:00]}  g5 {[%clk 0:02:25]} 2. d4 {[%clk 0:02:52]}  Bg7 {[%clk 0:02:24]} 3. h4 {[%clk 0:02:47]}  gxh4 {[%clk 0:02:23]} 4. Rxh4 {[%clk 0:02:46]}  e5 {[%clk 0:02:23]} 5. Rg4 {[%clk 0:02:45]}  Bf6 {[%clk 0:02:22]} 6. dxe5 {[%clk 0:02:38]}  Bxe5 {[%clk 0:02:23]} 7. Nf3 {[%clk 0:02:38]}  Bf6 {[%clk 0:02:22]} 8. e5 {[%clk 0:02:20]}  d6 {[%clk 0:02:21]} 9. Rxg8+ {[%clk 0:02:16]}  Rxg8 {[%clk 0:02:22]} 10. exf6 {[%clk 0:02:17]}  Qxf6 {[%clk 0:02:22]} 11. Nc3 {[%clk 0:02:08]}  c6 {[%clk 0:02:20]} 12. Qe2+ {[%clk 0:01:54]}  Be6 {[%clk 0:02:18]} 13. Ne4 {[%clk 0:01:51]}  Qd8 {[%clk 0:02:16]} 14. Bf4 {[%clk 0:01:47]}  Nd7 {[%clk 0:02:11]} 15. Nxd6+ {[%clk 0:01:43]}  Kf8 {[%clk 0:02:05]} 16. Bh6+ {[%clk 0:01:41]}  Ke7 {[%clk 0:02:05]} 17. O-O-O {[%clk 0:01:37]}  Qb6 {[%clk 0:02:01]} 18. Nf5+ {[%clk 0:01:20]}  Kd8 {[%clk 0:01:59]} 19. N5d4 {[%clk 0:01:11]}  Bd5 {[%clk 0:01:58]} 20. c4 {[%clk 0:01:05]}  c5 {[%clk 0:01:57]} 21. Bg5+ {[%clk 0:00:47]}  Rxg5 {[%clk 0:01:54]} 22. Nxg5 {[%clk 0:00:43]}  cxd4 {[%clk 0:01:52]} 23. cxd5 {[%clk 0:00:39]}  Rc8+ {[%clk 0:01:11]} 24. Kb1 {[%clk 0:00:39]}  Qg6+ {[%clk 0:01:09]} 25. Ne4 {[%clk 0:00:38]}  f5 {[%clk 0:01:01]} 26. Ng3 {[%clk 0:00:37]}  Nc5 {[%clk 0:00:48]} 27. Qe5 {[%clk 0:00:31]}  f4+ {[%clk 0:00:41]} 28. Nf5 {[%clk 0:00:30]}  Nd7 {[%clk 0:00:39]} 29. Qe7+ {[%clk 0:00:22]}  Kc7 {[%clk 0:00:38]} 30. Rc1+ {[%clk 0:00:22]}  Kb8 {[%clk 0:00:38]} 31. Rxc8+ {[%clk 0:00:22]}  Kxc8 {[%clk 0:00:37]} 32. Bd3 {[%clk 0:00:22]}  Qxg2 {[%clk 0:00:37]} 33. Nd6+ {[%clk 0:00:17]}  Kc7 {[%clk 0:00:36]} 34. Nb5+ {[%clk 0:00:17]}  Kb6 {[%clk 0:00:35]} 35. Qxd7 {[%clk 0:00:14]}  Qg1+ {[%clk 0:00:34]} 36. Kc2 {[%clk 0:00:14]}  Qxf2+ {[%clk 0:00:35]} 37. Kb3 {[%clk 0:00:15]}  a6 {[%clk 0:00:36]} 38. Qc7# {[%clk 0:00:14]} 1-0


[Site "https://www.chess.com"]

[Event "Titled Tuesday Blitz October 18 Late 2022"]
[White "Matinian, Nikita"]
[Black "Madaminov, Mukhiddin"]
[WhiteFideId "24129100"]
[BlackFideId "14210703"]
[WhiteElo "2422"]
[BlackElo "2341"]
[Result "1-0"]
[Round "09"]
[TimeControl "180+1"]
[Date "2022.10.18"]
[WhiteClock "0:00:10"]
[BlackClock "0:00:34"]

1. e4 {[%clk 0:03:00]}  e5 {[%clk 0:02:58]} 2. Nf3 {[%clk 0:03:01]}  Nc6 {[%clk 0:02:58]} 3. Bb5 {[%clk 0:03:01]}  a6 {[%clk 0:02:58]} 4. Ba4 {[%clk 0:03:02]}  Nf6 {[%clk 0:02:58]} 5. O-O {[%clk 0:03:01]}  Nxe4 {[%clk 0:02:59]} 6. d4 {[%clk 0:03:00]}  b5 {[%clk 0:02:59]} 7. Bb3 {[%clk 0:03:00]}  d5 {[%clk 0:02:59]} 8. dxe5 {[%clk 0:03:00]}  Be6 {[%clk 0:02:59]} 9. Nbd2 {[%clk 0:03:00]}  Be7 {[%clk 0:02:59]} 10. c3 {[%clk 0:02:55]}  O-O {[%clk 0:02:58]} 11. Bc2 {[%clk 0:02:52]}  f5 {[%clk 0:02:58]} 12. exf6 {[%clk 0:02:52]}  Nxf6 {[%clk 0:02:57]} 13. Ng5 {[%clk 0:02:27]}  Bg4 {[%clk 0:02:54]} 14. f3 {[%clk 0:02:25]}  Bc8 {[%clk 0:02:55]} 15. Re1 {[%clk 0:02:21]}  Qd6 {[%clk 0:02:54]} 16. Qe2 {[%clk 0:01:15]}  Re8 {[%clk 0:02:51]} 17. Bb3 {[%clk 0:00:42]}  Kf8 {[%clk 0:02:22]} 18. Qd3 {[%clk 0:00:29]}  g6 {[%clk 0:01:53]} 19. Nf1 {[%clk 0:00:28]}  Ne5 {[%clk 0:01:47]} 20. Qd1 {[%clk 0:00:25]}  Nf7 {[%clk 0:01:38]} 21. Nxf7 {[%clk 0:00:23]}  Kxf7 {[%clk 0:01:39]} 22. Bg5 {[%clk 0:00:21]}  c6 {[%clk 0:01:40]} 23. Ng3 {[%clk 0:00:17]}  Be6 {[%clk 0:01:34]} 24. Qd2 {[%clk 0:00:17]}  Rad8 {[%clk 0:01:25]} 25. Re2 {[%clk 0:00:17]}  Nd7 {[%clk 0:01:16]} 26. Rae1 {[%clk 0:00:16]}  Nc5 {[%clk 0:01:15]} 27. Bxe7 {[%clk 0:00:14]}  Rxe7 {[%clk 0:01:14]} 28. Qh6 {[%clk 0:00:14]}  Kg8 {[%clk 0:01:10]} 29. Bc2 {[%clk 0:00:14]}  Rde8 {[%clk 0:00:52]} 30. Kh1 {[%clk 0:00:14]}  Bf7 {[%clk 0:00:51]} 31. Nf5 {[%clk 0:00:10]}  gxf5 {[%clk 0:00:50]} 32. Qxd6 {[%clk 0:00:08]}  Rxe2 {[%clk 0:00:51]} 33. Rxe2 {[%clk 0:00:06]}  Rxe2 {[%clk 0:00:51]} 34. Qg3+ {[%clk 0:00:07]}  Kf8 {[%clk 0:00:42]} 35. Bxf5 {[%clk 0:00:08]}  Rxb2 {[%clk 0:00:37]} 36. Qd6+ {[%clk 0:00:07]}  Kg7 {[%clk 0:00:31]} 37. Qxc5 {[%clk 0:00:08]}  Kf6 {[%clk 0:00:29]} 38. Bd3 {[%clk 0:00:07]}  Rd2 {[%clk 0:00:27]} 39. Qd4+ {[%clk 0:00:06]}  Ke6 {[%clk 0:00:24]} 40. Qe3+ {[%clk 0:00:06]}  Kd6 {[%clk 0:00:25]} 41. Qxd2 {[%clk 0:00:07]}  Kc5 {[%clk 0:00:26]} 42. Qe3+ {[%clk 0:00:07]}  Kd6 {[%clk 0:00:26]} 43. Qf4+ {[%clk 0:00:07]}  Ke7 {[%clk 0:00:27]} 44. h4 {[%clk 0:00:08]}  Be6 {[%clk 0:00:27]} 45. Bxh7 {[%clk 0:00:08]}  c5 {[%clk 0:00:27]} 46. h5 {[%clk 0:00:08]}  d4 {[%clk 0:00:27]} 47. cxd4 {[%clk 0:00:08]}  c4 {[%clk 0:00:28]} 48. d5 {[%clk 0:00:09]}  Bxd5 {[%clk 0:00:29]} 49. Qe5+ {[%clk 0:00:09]}  Be6 {[%clk 0:00:29]} 50. Bf5 {[%clk 0:00:09]}  Kd7 {[%clk 0:00:30]} 51. Qxe6+ {[%clk 0:00:10]}  Kc7 {[%clk 0:00:30]} 52. Qd7+ {[%clk 0:00:10]}  Kb6 {[%clk 0:00:31]} 53. h6 {[%clk 0:00:10]}  Ka5 {[%clk 0:00:31]} 54. h7 {[%clk 0:00:10]}  Kb4 {[%clk 0:00:32]} 55. h8=Q {[%clk 0:00:10]}  c3 {[%clk 0:00:33]} 56. Qhd4+ {[%clk 0:00:10]}  Ka5 {[%clk 0:00:34]} 57. Qxc3+ {[%clk 0:00:10]}  Kb6 {[%clk 0:00:34]} 58. Qdc7# {[%clk 0:00:10]} 1-0


[Site "https://www.chess.com"]

[Event "Titled Tuesday Blitz October 18 Late 2022"]
[White "Melikhov, Evgeny V."]
[Black "Bilan, Danila"]
[WhiteFideId "4122046"]
[BlackFideId "24161918"]
[WhiteElo "2169"]
[BlackElo "2203"]
[Result "0-1"]
[Round "09"]
[TimeControl "180+1"]
[Date "2022.10.19"]
[WhiteClock "0:00:06"]
[BlackClock "0:00:44"]

1. d4 {[%clk 0:03:00]}  d5 {[%clk 0:02:59]} 2. c4 {[%clk 0:03:00]}  c6 {[%clk 0:02:59]} 3. Nc3 {[%clk 0:03:00]}  Nf6 {[%clk 0:02:59]} 4. e3 {[%clk 0:03:01]}  e6 {[%clk 0:02:58]} 5. Nf3 {[%clk 0:03:01]}  Nbd7 {[%clk 0:02:58]} 6. Bd3 {[%clk 0:03:01]}  Bd6 {[%clk 0:02:58]} 7. O-O {[%clk 0:03:00]}  O-O {[%clk 0:02:58]} 8. e4 {[%clk 0:03:01]}  dxc4 {[%clk 0:02:59]} 9. Bxc4 {[%clk 0:02:59]}  e5 {[%clk 0:02:59]} 10. Bg5 {[%clk 0:02:58]}  Qc7 {[%clk 0:02:59]} 11. Rc1 {[%clk 0:02:39]}  exd4 {[%clk 0:02:46]} 12. Qxd4 {[%clk 0:02:36]}  Ne5 {[%clk 0:02:30]} 13. Be2 {[%clk 0:02:29]}  Nxf3+ {[%clk 0:02:26]} 14. Bxf3 {[%clk 0:02:29]}  Bxh2+ {[%clk 0:02:26]} 15. Kh1 {[%clk 0:02:27]}  Bf4 {[%clk 0:02:23]} 16. Bxf6 {[%clk 0:02:19]}  gxf6 {[%clk 0:02:23]} 17. Nd5 {[%clk 0:02:13]}  Qe5 {[%clk 0:02:12]} 18. Nxf6+ {[%clk 0:01:59]}  Kh8 {[%clk 0:02:06]} 19. Qxe5 {[%clk 0:01:41]}  Bxe5 {[%clk 0:02:07]} 20. Nh5 {[%clk 0:01:35]}  Bxb2 {[%clk 0:02:05]} 21. Rb1 {[%clk 0:01:31]}  Be5 {[%clk 0:01:58]} 22. Rfd1 {[%clk 0:01:26]}  b6 {[%clk 0:01:54]} 23. g3 {[%clk 0:01:21]}  c5 {[%clk 0:01:49]} 24. Rd5 {[%clk 0:01:19]}  Bd4 {[%clk 0:01:40]} 25. Kg2 {[%clk 0:01:19]}  Be6 {[%clk 0:01:35]} 26. e5 {[%clk 0:00:41]}  Bxd5 {[%clk 0:01:30]} 27. Bxd5 {[%clk 0:00:41]}  Rad8 {[%clk 0:01:30]} 28. f4 {[%clk 0:00:36]}  Rxd5 {[%clk 0:01:30]} 29. Nf6 {[%clk 0:00:36]}  Rdd8 {[%clk 0:00:56]} 30. Rh1 {[%clk 0:00:35]}  Kg7 {[%clk 0:00:57]} 31. Rxh7+ {[%clk 0:00:33]}  Kg6 {[%clk 0:00:57]} 32. g4 {[%clk 0:00:25]}  Rh8 {[%clk 0:00:52]} 33. f5+ {[%clk 0:00:18]}  Kg5 {[%clk 0:00:52]} 34. Rxf7 {[%clk 0:00:13]}  Bxe5 {[%clk 0:00:48]} 35. Ne4+ {[%clk 0:00:09]}  Kf4 {[%clk 0:00:44]} 36. Nf2 {[%clk 0:00:06]}  Rd2 {[%clk 0:00:44]} 0-1


[Site "https://www.chess.com"]

[Event "Titled Tuesday Blitz October 18 Late 2022"]
[White "Mickiewicz, Piotr"]
[Black "Poliakova, Varvara"]
[WhiteFideId "1114891"]
[BlackFideId "13518313"]
[WhiteElo "2246"]
[BlackElo "1938"]
[Result "1/2-1/2"]
[Round "09"]
[TimeControl "180+1"]
[Date "2022.10.19"]
[WhiteClock "0:00:07"]
[BlackClock "0:00:55"]

1. e4 {[%clk 0:02:40]}  e5 {[%clk 0:02:57]} 2. Nf3 {[%clk 0:02:40]}  Nc6 {[%clk 0:02:55]} 3. Bc4 {[%clk 0:02:39]}  Bc5 {[%clk 0:02:55]} 4. d3 {[%clk 0:02:40]}  Nf6 {[%clk 0:02:54]} 5. Nbd2 {[%clk 0:02:41]}  h6 {[%clk 0:02:48]} 6. c3 {[%clk 0:02:41]}  d6 {[%clk 0:02:48]} 7. Bb3 {[%clk 0:02:40]}  a5 {[%clk 0:02:48]} 8. Nf1 {[%clk 0:02:38]}  Ba7 {[%clk 0:02:48]} 9. Ng3 {[%clk 0:02:37]}  O-O {[%clk 0:02:46]} 10. O-O {[%clk 0:02:36]}  Be6 {[%clk 0:02:46]} 11. h3 {[%clk 0:02:30]}  Qd7 {[%clk 0:02:43]} 12. Re1 {[%clk 0:02:13]}  Nh7 {[%clk 0:02:37]} 13. Nh4 {[%clk 0:02:06]}  b5 {[%clk 0:02:22]} 14. Nhf5 {[%clk 0:02:02]}  a4 {[%clk 0:02:21]} 15. Qg4 {[%clk 0:01:48]}  g6 {[%clk 0:02:19]} 16. Nxh6+ {[%clk 0:01:46]}  Kh8 {[%clk 0:02:17]} 17. Bxe6 {[%clk 0:01:43]}  Qxe6 {[%clk 0:02:18]} 18. Qxe6 {[%clk 0:01:40]}  fxe6 {[%clk 0:02:18]} 19. Be3 {[%clk 0:01:32]}  Bxe3 {[%clk 0:02:15]} 20. Rxe3 {[%clk 0:01:32]}  Kg7 {[%clk 0:02:13]} 21. Ng4 {[%clk 0:01:30]}  b4 {[%clk 0:02:14]} 22. Ne2 {[%clk 0:01:23]}  bxc3 {[%clk 0:02:11]} 23. bxc3 {[%clk 0:01:22]}  Rfb8 {[%clk 0:02:10]} 24. d4 {[%clk 0:01:12]}  a3 {[%clk 0:02:07]} 25. dxe5 {[%clk 0:01:11]}  Nxe5 {[%clk 0:02:06]} 26. Nxe5 {[%clk 0:01:10]}  dxe5 {[%clk 0:02:07]} 27. Rd3 {[%clk 0:01:10]}  Nf6 {[%clk 0:02:05]} 28. f3 {[%clk 0:01:04]}  Rb2 {[%clk 0:02:02]} 29. Kf1 {[%clk 0:01:02]}  Rab8 {[%clk 0:01:59]} 30. c4 {[%clk 0:01:02]}  Rc2 {[%clk 0:01:55]} 31. Rxa3 {[%clk 0:00:48]}  Rbb2 {[%clk 0:01:54]} 32. Re3 {[%clk 0:00:49]}  Nh5 {[%clk 0:01:51]} 33. Ke1 {[%clk 0:00:44]}  Nf4 {[%clk 0:01:47]} 34. Nxf4 {[%clk 0:00:42]}  exf4 {[%clk 0:01:48]} 35. Rb3 {[%clk 0:00:35]}  Rxg2 {[%clk 0:01:47]} 36. Rxb2 {[%clk 0:00:34]}  Rxb2 {[%clk 0:01:48]} 37. a4 {[%clk 0:00:33]}  Rh2 {[%clk 0:01:44]} 38. Ra3 {[%clk 0:00:32]}  Rxh3 {[%clk 0:01:43]} 39. a5 {[%clk 0:00:31]}  Rh8 {[%clk 0:01:41]} 40. a6 {[%clk 0:00:32]}  Ra8 {[%clk 0:01:37]} 41. a7 {[%clk 0:00:31]}  Kf6 {[%clk 0:01:37]} 42. Ra5 {[%clk 0:00:31]}  c5 {[%clk 0:01:35]} 43. Kd2 {[%clk 0:00:29]}  g5 {[%clk 0:01:33]} 44. Ke2 {[%clk 0:00:22]}  Kg6 {[%clk 0:01:28]} 45. Kf2 {[%clk 0:00:21]}  Kh5 {[%clk 0:01:27]} 46. Kg2 {[%clk 0:00:19]}  Kg6 {[%clk 0:01:24]} 47. Ra6 {[%clk 0:00:19]}  Kf6 {[%clk 0:01:22]} 48. Kh3 {[%clk 0:00:19]}  Ke5 {[%clk 0:01:20]} 49. Kg4 {[%clk 0:00:18]}  Kf6 {[%clk 0:01:20]} 50. e5+ {[%clk 0:00:17]}  Kxe5 {[%clk 0:01:20]} 51. Kxg5 {[%clk 0:00:18]}  Rg8+ {[%clk 0:01:18]} 52. Kh6 {[%clk 0:00:17]}  Ra8 {[%clk 0:01:19]} 53. Kg6 {[%clk 0:00:17]}  Kd4 {[%clk 0:01:16]} 54. Kf6 {[%clk 0:00:16]}  e5 {[%clk 0:01:14]} 55. Kf5 {[%clk 0:00:16]}  e4 {[%clk 0:01:13]} 56. Kxf4 {[%clk 0:00:14]}  e3 {[%clk 0:01:12]} 57. Rd6+ {[%clk 0:00:14]}  Kxc4 {[%clk 0:01:12]} 58. Kxe3 {[%clk 0:00:13]}  Rxa7 {[%clk 0:01:12]} 59. Ke4 {[%clk 0:00:14]}  Re7+ {[%clk 0:01:06]} 60. Kf4 {[%clk 0:00:13]}  Kb5 {[%clk 0:01:04]} 61. Kg5 {[%clk 0:00:12]}  c4 {[%clk 0:01:02]} 62. f4 {[%clk 0:00:13]}  c3 {[%clk 0:01:01]} 63. Rd8 {[%clk 0:00:12]}  Rg7+ {[%clk 0:00:59]} 64. Kf6 {[%clk 0:00:10]}  Rc7 {[%clk 0:00:59]} 65. Rd1 {[%clk 0:00:09]}  c2 {[%clk 0:00:59]} 66. Rc1 {[%clk 0:00:08]}  Kb4 {[%clk 0:00:59]} 67. Ke6 {[%clk 0:00:08]}  Kc3 {[%clk 0:00:59]} 68. f5 {[%clk 0:00:08]}  Rc6+ {[%clk 0:00:58]} 69. Ke7 {[%clk 0:00:07]}  Kd2 {[%clk 0:00:57]} 70. Rxc2+ {[%clk 0:00:06]}  Kxc2 {[%clk 0:00:55]} 71. f6 {[%clk 0:00:07]}  Rc7+ {[%clk 0:00:54]} 72. Ke8 {[%clk 0:00:07]}  Kd3 {[%clk 0:00:53]} 73. f7 {[%clk 0:00:06]}  Ke4 {[%clk 0:00:53]} 74. f8=Q {[%clk 0:00:05]}  Rc8+ {[%clk 0:00:54]} 75. Ke7 {[%clk 0:00:06]}  Rxf8 {[%clk 0:00:55]} 76. Kxf8 {[%clk 0:00:07]} 1/2-1/2


[Site "https://www.chess.com"]